fUST/lending_fUST_20251216
["ID","MTS","AMOUNT","RATE_DAILY","PERIOD"]
[398691868,1765891396270,149.99,7.176e-05,2]
[398691872,1765891396659,287.5,7.829e-05,2]
[398691875,1765891397104,431.26,8.481e-05,2]
[398691876,1765891397523,575.01,9.134e-05,2]
[398691877,1765891402316,5000.0,9.454e-05,2]
[398691927,1765891426521,5000.0,9.454e-05,2]
[398691954,1765891449668,5000.0,9.454e-05,2]
[398691970,1765891472803,0.01,9.454e-05,2]
[398691971,1765891472837,4999.99,9.454e-05,2]
[398691972,1765891475531,150.0,7.184e-05,2]
[398691973,1765891475952,296.14,7.837e-05,2]
[398691974,1765891476361,444.22,8.49e-05,2]
[398691977,1765891476775,592.29,9.143e-05,2]
[398692034,1765891496056,3517.37,9.454e-05,2]
[398692035,1765891496095,1482.63,9.454e-05,2]
[398692065,1765891520506,5000.0,9.454e-05,2]
[398692114,1765891545027,3517.38,9.454e-05,2]
[398692115,1765891545066,1482.62,9.454e-05,2]
[398692155,1765891555745,158.67,7.196e-05,2]
[398692156,1765891556159,317.33,7.85e-05,2]
[398692157,1765891556560,476.0,8.504e-05,2]
[398692158,1765891557033,634.66,9.159e-05,2]
[398692191,1765891568435,5000.0,9.454e-05,2]
[398692222,1765891585043,5000.0,9.454e-05,2]
[398692229,1765891593360,5000.0,9.454e-05,2]
[398692297,1765891617605,0.01,9.454e-05,2]
[398692298,1765891617648,4999.99,9.454e-05,2]
[398692303,1765891635875,166.21,7.243e-05,2]
[398692304,1765891636472,332.42,7.902e-05,2]
[398692305,1765891637008,498.62,8.56e-05,2]
[398692308,1765891637457,664.83,9.219e-05,2]
[398692310,1765891640887,3337.94,9.454e-05,2]
[398692311,1765891647137,-1662.06,9.454e-05,2]
[398692312,1765891647159,-140.41974707,9.494e-05,2]
[398692315,1765891663828,5000.0,9.444e-05,2]
[398692323,1765891688177,5000.0,9.444e-05,2]
[398692324,1765891711577,0.01,9.444e-05,2]
[398692325,1765891711620,4999.99,9.444e-05,2]
[398692326,1765891715707,217.11,7.269e-05,2]
[398692327,1765891716289,434.21,7.93e-05,2]
[398692328,1765891716719,651.32,8.591e-05,2]
[398692329,1765891717145,868.43,9.251e-05,2]
[398692366,1765891735853,2828.95,9.444e-05,2]
[398692367,1765891735901,2171.05,9.444e-05,2]
[398692368,1765891749413,-95.97518861,9.494e-05,2]
[398692369,1765891749438,-261.8903469,9.494e-05,2]
[398692374,1765891755106,-238.1096531,9.494e-05,2]
[398692375,1765891755128,-237.05735966,9.494e-05,2]
[398692376,1765891755148,-553.0,9.494e-05,2]
[398692377,1765891755169,-244.63249092,9.494e-05,2]
[398692378,1765891758992,5000.0,9.444e-05,2]
[398692382,1765891768765,2828.96,9.395e-05,2]
[398692383,1765891768806,10000.01,9.395e-05,2]
[398692384,1765891768849,10000.01,9.395e-05,2]
[398692385,1765891768892,1239.93695624,9.395e-05,2]
[398692386,1765891772110,-55.36750908,9.494e-05,2]
[398692387,1765891772131,-329.90777431,9.494e-05,2]
[398692388,1765891782289,5000.0,9.444e-05,2]
[398692389,1765891796092,281.14,7.183e-05,2]
[398692390,1765891796483,562.29,7.836e-05,2]
[398692395,1765891806410,3453.92750836,8.4e-05,2]
[398692396,1765891809326,-179.92372092,8.4e-05,2]
[398692397,1765891811644,-300.0,8.4e-05,2]
[398692398,1765891811695,-1066.14877072,8.4e-05,2]
[398692399,1765891811742,-843.43,8.489e-05,2]
[398692400,1765891811789,-539.0,8.489e-05,2]
[398692401,1765891811840,-1124.57,9.142e-05,2]
[398692402,1765891830767,2853.71245856,9.364e-05,2]
[398692403,1765891830807,2146.28754144,9.364e-05,2]
[398692418,1765891832337,-74.11109499,9.494e-05,2]
[398692419,1765891832347,-126.16443246,9.682e-05,2]
[398692420,1765891832362,-373.83556754,9.682e-05,2]
[398692421,1765891832372,-500.0,9.682e-05,2]
[398692422,1765891832384,-700.0,9.682e-05,2]
[398692423,1765891832393,-300.0,9.683e-05,2]
[398692424,1765891832403,-600.0,9.684e-05,2]
[398692425,1765891832412,-300.0,9.684e-05,2]
[398692426,1765891832422,-300.0,9.684e-05,2]
[398692428,1765891832432,-300.0,9.684e-05,2]
[398692430,1765891832442,-300.0,9.684e-05,2]
[398692431,1765891832451,-300.0,9.684e-05,2]
[398692432,1765891832460,-300.0,9.684e-05,2]
[398692433,1765891832470,-300.0,9.684e-05,2]
[398692434,1765891832479,-300.0,9.684e-05,2]
[398692435,1765891832488,-300.0,9.684e-05,2]
[398692436,1765891832497,-300.0,9.684e-05,2]
[398692437,1765891832506,-300.0,9.684e-05,2]
[398692438,1765891832515,-300.0,9.684e-05,2]
[398692439,1765891832524,-300.0,9.684e-05,2]
[398692440,1765891832533,-300.0,9.684e-05,2]
[398692441,1765891832542,-300.0,9.684e-05,2]
[398692442,1765891832551,-1405.72,9.795e-05,2]
[398692443,1765891832560,-163.371,0.00010196,2]
[398692444,1765891832569,-8047.9624747,0.00010373,2]
[398692445,1765891832578,-1686.86,0.00010448,2]
[398692446,1765891832587,-420.0,0.00010651,2]
[398692447,1765891832596,-720.0,0.00010652,2]
[398692448,1765891832605,-564.46376999,0.00010919,2]
[398692449,1765891832615,-182.55908715,0.00010919,2]
[398692450,1765891832623,-500.0,0.00010958,2]
[398692451,1765891832637,-500.0,0.00010959,2]
[398692452,1765891832646,-500.0,0.00010959,2]
[398692453,1765891832656,-500.0,0.00010959,2]
[398692454,1765891832665,-500.0,0.00010959,2]
[398692455,1765891832676,-500.0,0.00010959,2]
[398692456,1765891832685,-595.69074931,0.00010959,2]
[398692457,1765891832694,-500.0,0.00010959,2]
[398692458,1765891832704,-500.0,0.00010959,2]
[398692459,1765891832713,-500.0,0.00010959,2]
[398692460,1765891832723,-500.0,0.00010959,2]
[398692461,1765891832732,-500.0,0.00010959,2]
[398692462,1765891832740,-500.0,0.00010959,2]
[398692463,1765891832750,-500.0,0.00010959,2]
[398692464,1765891832760,-500.0,0.00010959,2]
[398692465,1765891832771,-350.0,0.00010959,2]
[398692466,1765891832781,-500.0,0.00010959,2]
[398692467,1765891832791,-500.0,0.00010959,2]
[398692468,1765891832800,-500.0,0.00010959,2]
[398692469,1765891832810,-500.0,0.00010959,2]
[398692470,1765891832820,-415.0,0.00011024,2]
[398692471,1765891832829,-1968.0,0.00011101,2]
[398692472,1765891832839,-500.0,0.00011232,2]
[398692473,1765891832848,-500.0,0.00011232,2]
[398692474,1765891832858,-476.74226577,0.00011494,2]
[398692475,1765891832868,-500.0,0.00011506,2]
[398692476,1765891832877,-564.46376999,0.00011573,2]
[398692477,1765891832890,-587.0,0.00011716,2]
[398692478,1765891832900,-864.0,0.00011717,2]
[398692479,1765891832910,-150.0,0.00011726,2]
[398692480,1765891832919,-500.0,0.00011726,2]
[398692481,1765891832928,-250.0,0.00011726,2]
[398692482,1765891832937,-2249.15,0.00011754,2]
[398692483,1765891832946,-777.6942,0.00011754,2]
[398692484,1765891832955,-198.08824625,0.00011769,2]
[398692485,1765891832964,-500.0,0.0001178,2]
[398692486,1765891832974,-257.27439947,0.00011863,2]
[398692487,1765891832984,-500.0,0.00011863,2]
[398692488,1765891832993,-500.0,0.00012,2]
[398692489,1765891833002,-900.0,0.00012,2]
[398692490,1765891833013,-152.15,0.00012,2]
[398692491,1765891833023,-500.0,0.00012054,2]
[398692492,1765891833034,-346.70269191,0.00012095,2]
[398692493,1765891833043,-152.15,0.000121,2]
[398692494,1765891833053,-564.46376999,0.00012228,2]
[398692495,1765891833062,-152.15,0.000123,2]
[398692496,1765891833072,-644.47,0.00012328,2]
[398692497,1765891833082,-800.0,0.00012356,2]
[398692498,1765891833092,-152.15,0.000124,2]
[398692499,1765891833102,-2530.29,0.00012407,2]
[398692500,1765891833111,-431.17647444,0.00012492,2]
[398692501,1765891833120,-152.15,0.000125,2]
[398692502,1765891833129,-152.15,0.000126,2]
[398692503,1765891833141,-500.0,0.00012602,2]
[398692504,1765891833150,-1278.3,0.00012602,2]
[398692505,1765891833159,-699.29,0.00012602,2]
[398692506,1765891833169,-500.0,0.00012602,2]
[398692507,1765891833179,-725.07,0.00012602,2]
[398692508,1765891833188,-500.0,0.00012602,2]
[398692509,1765891833198,-565.71,0.00012602,2]
[398692510,1765891833207,-500.0,0.00012602,2]
[398692511,1765891833216,-823.89,0.00012602,2]
[398692512,1765891833226,-500.0,0.00012602,2]
[398692513,1765891833235,-500.0,0.00012602,2]
[398692514,1765891833243,-500.0,0.00012602,2]
[398692515,1765891833253,-1367.03,0.00012602,2]
[398692516,1765891833262,-717.06,0.00012602,2]
[398692517,1765891833271,-500.0,0.00012602,2]
[398692518,1765891833280,-715.89,0.00012602,2]
[398692519,1765891833290,-500.0,0.00012602,2]
[398692520,1765891833299,-1032.39,0.00012602,2]
[398692521,1765891833308,-1245.67,0.00012602,2]
[398692522,1765891833318,-500.0,0.00012602,2]
[398692523,1765891833328,-500.0,0.00012602,2]
[398692524,1765891833336,-13973.01161011,0.00012602,2]
[398692555,1765891838542,-614.70992486,9.494e-05,2]
[398692557,1765891838551,-574.12855637,9.682e-05,2]
[398692560,1765891838560,-668.60838989,0.00012602,2]
[398692561,1765891838570,-500.0,0.00012602,2]
[398692564,1765891838579,-500.0,0.00012602,2]
[398692565,1765891838588,-280.59568299,0.00012602,2]
[398692568,1765891838599,-219.40431701,0.00012602,2]
[398692570,1765891838608,-1167.32,0.00012602,2]
[398692572,1765891838617,-400.17560386,0.00012602,2]
[398692787,1765891840652,-452.649032,0.00012602,2]
[398692821,1765891841118,-3e-08,0.00012602,2]
[398692822,1765891841131,-291.36536411,0.00012602,2]
[398692823,1765891841148,-500.0,0.00012602,2]
[398692824,1765891841161,-749.13264113,0.00012602,2]
[398692825,1765891841174,-837.41735887,0.00012602,2]
[398692826,1765891841185,-500.0,0.00012602,2]
[398692827,1765891841195,-856.77,0.00012602,2]
[398692828,1765891841206,-492.21613583,0.00012602,2]
[398692829,1765891841225,-147.64386417,0.00012602,2]
[398692830,1765891841235,-647.24,0.00012602,2]
[398692831,1765891841246,-1205.16120583,0.00012602,2]
[398692832,1765891841259,-270.32879417,0.00012602,2]
[398692833,1765891841269,-163.00275752,0.00012602,2]
[398693060,1765891843535,-1073.37724248,0.00012602,2]
[398693062,1765891843545,-1503.49,0.00012602,2]
[398693064,1765891843555,-680.09,0.00012602,2]
[398693066,1765891843564,-1511.33,0.00012602,2]
[398693068,1765891843573,-500.0,0.00012602,2]
[398693070,1765891843582,-1722.09,0.00012602,2]
[398693072,1765891843591,-1489.15,0.00012602,2]
[398693074,1765891843600,-1573.14,0.00012602,2]
[398693076,1765891843609,-5766.41,0.00012602,2]
[398693078,1765891843617,-500.0,0.00012602,2]
[398693080,1765891843626,-500.0,0.00012602,2]
[398693082,1765891843635,-551.9,0.00012602,2]
[398693084,1765891843648,-500.0,0.00012602,2]
[398693086,1765891843657,-613.18,0.00012602,2]
[398693088,1765891843665,-4949.72,0.00012602,2]
[398693090,1765891843674,-500.0,0.00012602,2]
[398693093,1765891843683,-500.0,0.00012602,2]
[398693094,1765891843692,-521.87,0.00012602,2]
[398693096,1765891843701,-500.0,0.00012602,2]
[398693098,1765891843710,-500.0,0.00012602,2]
[398693100,1765891843718,-500.0,0.00012602,2]
[398693102,1765891843727,-623.472791,0.00012602,2]
[398693104,1765891843737,-500.0,0.00012602,2]
[398693106,1765891843746,-192.06,0.00012602,2]
[398693109,1765891843755,-500.0,0.00012602,2]
[398693112,1765891843765,-413.76,0.00012602,2]
[398693115,1765891843774,-500.0,0.00012602,2]
[398693118,1765891843783,-266.49,0.00012602,2]
[398693121,1765891843793,-293.46,0.00012602,2]
[398693124,1765891843802,-500.0,0.00012602,2]
[398693126,1765891843811,-500.0,0.00012602,2]
[398693128,1765891843821,-500.0,0.00012602,2]
[398693130,1765891843831,-500.0,0.00012602,2]
[398693132,1765891843841,-258.21,0.00012602,2]
[398693134,1765891843851,-507.93,0.00012602,2]
[398693136,1765891843861,-500.0,0.00012602,2]
[398693138,1765891843870,-549.75,0.00012602,2]
[398693140,1765891843880,-89.25714593,0.00012602,2]
[398693157,1765891844045,-494.91839633,0.00012602,2]
[398693159,1765891844055,-500.0,0.00012602,2]
[398693161,1765891844064,-140.126849,0.00012602,2]
[398693163,1765891844076,-289.54641168,0.00012602,2]
[398693383,1765891846602,-70.32673932,0.00012602,2]
[398693385,1765891846612,-500.0,0.00012602,2]
[398693387,1765891846621,-321.47326068,0.00012602,2]
[398693389,1765891846632,-178.52673932,0.00012602,2]
[398693391,1765891846643,-500.0,0.00012602,2]
[398693393,1765891846652,-500.0,0.00012602,2]
[398693395,1765891846661,-500.0,0.00012602,2]
[398693397,1765891846670,-500.0,0.00012602,2]
[398693399,1765891846680,-500.0,0.00012602,2]
[398693401,1765891846689,-500.0,0.00012602,2]
[398693403,1765891846698,-500.0,0.00012632,2]
[398693405,1765891846706,-500.0,0.00012632,2]
[398693407,1765891846715,-309.35609666,0.00012632,2]
[398693409,1765891846727,-190.64390334,0.00012632,2]
[398693411,1765891846736,-63.09862856,0.00012632,2]
[398693514,1765891847786,-436.90137144,0.00012632,2]
[398693516,1765891847795,-500.0,0.00012632,2]
[398693518,1765891847804,-500.0,0.00012632,2]
[398693520,1765891847813,-500.0,0.00012632,2]
[398693522,1765891847821,-500.0,0.00012632,2]
[398693524,1765891847830,-961.39,0.00012632,2]
[398693526,1765891847839,-182.74164623,0.00012678,2]
[398693528,1765891847848,-624.06484544,0.00012735,2]
[398693530,1765891847857,-273.68425713,0.00012737,2]
[398693532,1765891847867,-152.15,0.000128,2]
[398693534,1765891847876,-500.0,0.00012876,2]
[398693536,1765891847885,-1278.3,0.00012876,2]
[398693538,1765891847897,-699.29,0.00012876,2]
[398693540,1765891847905,-500.0,0.00012876,2]
[398693542,1765891847914,-725.07,0.00012876,2]
[398693544,1765891847923,-500.0,0.00012876,2]
[398693546,1765891847932,-565.71,0.00012876,2]
[398693548,1765891847941,-500.0,0.00012876,2]
[398693550,1765891847951,-823.89,0.00012876,2]
[398693552,1765891847960,-185.22017138,0.00012876,2]
[398693553,1765891847973,-500.0,0.00012876,2]
[398693555,1765891847982,-429.94736915,0.00012876,2]
[398693557,1765891847996,-1367.03,0.00012876,2]
[398693559,1765891848016,-717.06,0.00012876,2]
[398693561,1765891848032,-500.0,0.00012876,2]
[398693563,1765891848042,-715.89,0.00012876,2]
[398693565,1765891848053,-500.0,0.00012876,2]
[398693567,1765891848062,-1032.39,0.00012876,2]
[398693569,1765891848071,-1245.67,0.00012876,2]
[398693571,1765891848080,-500.0,0.00012876,2]
[398693573,1765891848090,-500.0,0.00012876,2]
[398693575,1765891848099,-93.60033921,0.00012876,2]
[398695855,1765891873791,150.0,7.484e-05,2]
[398695899,1765891874216,256.28,8.164e-05,2]
[398695942,1765891874620,384.43,8.845e-05,2]
[398703070,1765891953724,150.0,7.475e-05,2]
[398703109,1765891954168,236.16,8.155e-05,2]
[398703161,1765891954732,354.23,8.834e-05,2]
[398703816,1765892033374,150.0,7.182e-05,2]
[398703817,1765892033845,217.31,7.835e-05,2]
[398703818,1765892034447,325.97,8.488e-05,2]
[398703819,1765892034871,434.62,9.141e-05,2]
[398703928,1765892112844,150.0,7.217e-05,2]
[398703929,1765892113251,188.6,7.873e-05,2]
[398703930,1765892113685,282.9,8.529e-05,2]
[398703931,1765892114092,377.2,9.185e-05,2]
[398703960,1765892191798,150.0,7.172e-05,2]
[398703961,1765892192234,163.18,7.824e-05,2]
[398703962,1765892192636,244.77,8.476e-05,2]
[398703963,1765892193041,326.36,9.128e-05,2]
[398704003,1765892240082,5000.0,9.439e-05,2]
[398704029,1765892263226,4115.7,9.439e-05,2]
[398704030,1765892263265,884.3,9.439e-05,2]
[398704031,1765892270976,150.0,7.177e-05,2]
[398704032,1765892271416,167.4,7.83e-05,2]
[398704033,1765892271819,251.09,8.482e-05,2]
[398704034,1765892272262,334.79,9.135e-05,2]
[398704040,1765892280359,300.0,9.439e-05,2]
[398704058,1765892349164,150.0,7.176e-05,2]
[398704059,1765892349583,168.65,7.828e-05,2]
[398704060,1765892350279,252.97,8.48e-05,2]
[398704061,1765892350731,337.3,9.133e-05,2]
[398704062,1765892428271,150.0,7.166e-05,2]
[398704063,1765892428997,152.71,7.818e-05,2]
[398704064,1765892429235,229.06,8.469e-05,2]
[398704065,1765892429643,305.41,9.121e-05,2]
[398704068,1765892492579,5000.0,9.44e-05,2]
[398704070,1765892507613,150.0,7.182e-05,2]
[398704071,1765892508034,150.0,7.835e-05,2]
[398704072,1765892508915,221.01,8.488e-05,2]
[398704073,1765892509337,294.68,9.141e-05,2]
[398704074,1765892515806,4184.32,9.44e-05,2]
[398704075,1765892515847,815.68,9.44e-05,2]
[398704076,1765892538944,5000.0,9.44e-05,2]
[398704077,1765892562598,4184.33,9.44e-05,2]
[398704078,1765892562635,815.67,9.44e-05,2]
[398704079,1765892585880,5000.0,9.44e-05,2]
[398704080,1765892587147,150.0,7.196e-05,2]
[398704081,1765892587408,165.53,7.85e-05,2]
[398704082,1765892587825,248.3,8.504e-05,2]
[398704083,1765892588253,331.07,9.158e-05,2]
[398704084,1765892609992,3289.44,9.44e-05,2]
[398704085,1765892610032,1710.56,9.44e-05,2]
[398704086,1765892633193,5000.0,9.44e-05,2]
[398704087,1765892657136,3289.45,9.44e-05,2]
[398704088,1765892657173,1710.55,9.44e-05,2]
[398704089,1765892664889,150.0,7.241e-05,2]
[398704090,1765892665327,218.08,7.9e-05,2]
[398704091,1765892665748,327.13,8.558e-05,2]
[398704092,1765892666192,436.17,9.216e-05,2]
[398704093,1765892680726,5000.0,9.44e-05,2]
[398704094,1765892708927,2158.08,9.44e-05,2]
[398704095,1765892744635,150.0,7.418e-05,2]
[398704096,1765892745040,241.8,8.093e-05,2]
[398704097,1765892745480,362.71,8.767e-05,2]
[398704098,1765892791819,-2841.92,9.44e-05,2]
[398704099,1765892802240,4316.17,9.44e-05,2]
[398704100,1765892802282,683.83,9.44e-05,2]
[398704101,1765892810472,-483.61,9.441e-05,2]
[398704102,1765892823020,150.0,7.198e-05,2]
[398704103,1765892823423,210.29,7.853e-05,2]
[398704104,1765892824319,315.43,8.507e-05,2]
[398704105,1765892824777,420.58,9.161e-05,2]
[398704106,1765892826164,5000.0,9.441e-05,2]
[398704107,1765892848129,-390.71124037,9.551e-05,2]
[398704108,1765892848149,-71.39410577,9.551e-05,2]
[398704109,1765892849580,5000.0,9.551e-05,2]
[398704110,1765892872700,5000.0,9.551e-05,2]
[398704111,1765892885246,150.0,5.2e-07,2]
[398704112,1765892886301,150.0,5.2e-07,2]
[398704113,1765892888792,-482.60589423,9.551e-05,2]
[398704114,1765892895890,5000.0,9.551e-05,2]
[398704115,1765892904094,150.0,7.423e-05,2]
[398704116,1765892904525,182.38,8.097e-05,2]
[398704117,1765892904943,273.57,8.772e-05,2]
[398704118,1765892905827,364.76,9.447e-05,2]
[398704119,1765892912652,-1200.0,9.74e-05,2]
[398704120,1765892912693,-300.0,9.74e-05,2]
[398704121,1765892919633,5000.0,9.74e-05,2]
[398704122,1765892935286,-300.0,9.741e-05,2]
[398704123,1765892935335,-300.0,9.741e-05,2]
[398704124,1765892935383,-300.0,9.741e-05,2]
[398704125,1765892935427,-300.0,9.741e-05,2]
[398704126,1765892935472,-300.0,9.741e-05,2]
[398704127,1765892935515,-300.0,9.741e-05,2]
[398704128,1765892935557,-300.0,9.741e-05,2]
[398704129,1765892935600,-300.0,9.741e-05,2]
[398704130,1765892935645,-300.0,9.741e-05,2]
[398704131,1765892935688,-300.0,9.741e-05,2]
[398704132,1765892935732,-300.0,9.741e-05,2]
[398704133,1765892935777,-300.0,9.741e-05,2]
[398704134,1765892935822,-300.0,9.741e-05,2]
[398704135,1765892935866,-300.0,9.741e-05,2]
[398704136,1765892935908,-300.0,9.741e-05,2]
[398704137,1765892943720,1000.01,9.741e-05,2]
[398704138,1765892943763,3999.99,9.741e-05,2]
[398704139,1765892966861,5000.0,9.741e-05,2]
[398704140,1765892983602,150.0,7.183e-05,2]
[398704141,1765892983670,158.66,7.836e-05,2]
[398704142,1765892984093,237.99,8.489e-05,2]
[398704143,1765892984515,317.32,9.142e-05,2]
[398704144,1765892990072,136.05,9.741e-05,2]
[398704145,1765892990112,879.06628187,9.741e-05,2]
[398704146,1765893025129,-193.58355277,9.603e-05,2]
[398704268,1765893038908,-500.0,9.702e-05,2]
[398704270,1765893038918,-500.0,9.702e-05,2]
[398704271,1765893038927,-500.0,9.702e-05,2]
[398704272,1765893038936,-500.0,9.702e-05,2]
[398704274,1765893038946,-500.0,9.702e-05,2]
[398704276,1765893038955,-500.0,9.702e-05,2]
[398704278,1765893038965,-500.0,9.702e-05,2]
[398704280,1765893038974,-40.29958255,9.702e-05,2]
[398704495,1765893040934,-459.70041745,9.702e-05,2]
[398704497,1765893040943,-500.0,9.702e-05,2]
[398704499,1765893040952,-200.17577284,9.702e-05,2]
[398704501,1765893040961,-495.37617145,9.702e-05,2]
[398704503,1765893040970,-500.0,9.702e-05,2]
[398704505,1765893040979,-500.0,9.702e-05,2]
[398704507,1765893040988,-369.47663082,9.702e-05,2]
[398704509,1765893040997,-4635.27460516,9.703e-05,2]
[398704807,1765893043797,-9899.06991314,9.703e-05,2]
[398704809,1765893043806,-396.65,9.795e-05,2]
[398704812,1765893043817,-557.0,9.795e-05,2]
[398704813,1765893043826,-600.0,9.935e-05,2]
[398704816,1765893043835,-190.054969,9.967e-05,2]
[398704818,1765893043844,-169.06,0.0001,2]
[398704819,1765893043855,-300.0,0.00010113,2]
[398704822,1765893043864,-123.82363256,0.00010159,2]
[398704824,1765893043875,-131.17636744,0.00010159,2]
[398704826,1765893043885,-300.0,0.00010315,2]
[398704828,1765893043894,-300.0,0.00010315,2]
[398704830,1765893043905,-300.0,0.00010315,2]
[398704832,1765893043914,-124.22363256,0.00010315,2]
[398704834,1765893043925,-175.77636744,0.00010315,2]
[398704836,1765893043934,-300.0,0.00010315,2]
[398704838,1765893043943,-300.0,0.00010315,2]
[398704840,1765893043952,-144.60493003,0.00010315,2]
[398704842,1765893043963,-155.39506997,0.00010315,2]
[398704844,1765893043972,-300.0,0.00010315,2]
[398704846,1765893043980,-165.11615385,0.00010315,2]
[398704848,1765893043992,-134.88384615,0.00010315,2]
[398704851,1765893044002,-300.0,0.00010315,2]
[398704852,1765893044012,-300.0,0.00010315,2]
[398704854,1765893044021,-300.0,0.00010315,2]
[398704856,1765893044031,-300.0,0.00010315,2]
[398704858,1765893044040,-300.0,0.00010315,2]
[398704860,1765893044049,-300.0,0.00010315,2]
[398704862,1765893044058,-475.98,0.00010448,2]
[398704864,1765893044069,-204.0995996,0.00010455,2]
[398704866,1765893044078,-1538.9844383,0.00010698,2]
[398704868,1765893044088,-720.0,0.00010928,2]
[398704870,1765893044097,-500.0,0.00010958,2]
[398704872,1765893044107,-291.1724658,0.00010959,2]
[398704874,1765893044116,-500.0,0.00010959,2]
[398704876,1765893044125,-500.0,0.00010959,2]
[398704878,1765893044135,-500.0,0.00010959,2]
[398704880,1765893044144,-500.0,0.00010959,2]
[398704882,1765893044153,-500.0,0.00010959,2]
[398704884,1765893044163,-500.0,0.00010959,2]
[398704886,1765893044172,-261.98352452,0.00010959,2]
[398704888,1765893044181,-500.0,0.00010959,2]
[398704890,1765893044191,-500.0,0.00010959,2]
[398704892,1765893044200,-500.0,0.00010959,2]
[398704894,1765893044209,-500.0,0.00010959,2]
[398704896,1765893044218,-500.0,0.00010959,2]
[398704898,1765893044227,-500.0,0.00010959,2]
[398704900,1765893044237,-500.0,0.00010959,2]
[398704902,1765893044246,-500.0,0.00010959,2]
[398704904,1765893044255,-500.0,0.00010959,2]
[398704906,1765893044264,-500.0,0.00010959,2]
[398704908,1765893044274,-511.55846522,0.00010959,2]
[398704910,1765893044283,-981.8,0.00011,2]
[398704912,1765893044292,-574.12855637,0.00011045,2]
[398704914,1765893044301,-163.371,0.00011045,2]
[398704916,1765893044310,-10006.1594466,0.00011051,2]
[398704918,1765893044321,-555.31,0.00011101,2]
[398704920,1765893044331,-420.0,0.00011123,2]
[398704922,1765893044340,-1396.0346411,0.00011195,2]
[398704924,1765893044349,-226.19184064,0.00011201,2]
[398704926,1765893044359,-388.886,0.00011201,2]
[398704928,1765893044368,-415.0,0.00011216,2]
[398704930,1765893044377,-500.0,0.00011232,2]
[398704932,1765893044386,-500.0,0.00011506,2]
[398704934,1765893044399,-461.03926364,0.00011551,2]
[398704935,1765893044409,-456.3749505,0.00011684,4]
[398704936,1765893044418,-634.64,0.00011754,2]
[398704937,1765893044428,-226.19184064,0.00011769,2]
[398704938,1765893044438,-198.08824625,0.00011771,2]
[398704939,1765893044447,-617.96150002,0.0001178,2]
[398704940,1765893044456,-155.64,0.00012,2]
[398704941,1765893044466,-864.0,0.00012021,2]
[398704942,1765893044477,-155.64,0.000122,2]
[398704943,1765893044487,-587.0,0.00012234,2]
[398704944,1765893044496,-155.64,0.000123,2]
[398704945,1765893044505,-226.19184064,0.00012338,2]
[398704946,1765893044515,-221.29253173,0.00012346,2]
[398704947,1765893044527,-28.70746827,0.00012346,2]
[398704948,1765893044536,-700.0,0.00012356,2]
[398704949,1765893044546,-25158.03,0.00012402,2]
[398704950,1765893044555,-713.97,0.00012407,2]
[398704951,1765893044564,-375.3470445,0.00012425,2]
[398704952,1765893044574,-375.3470445,0.00012425,2]
[398704953,1765893044584,-375.3470445,0.00012425,2]
[398704954,1765893044593,-375.3470445,0.00012425,2]
[398704955,1765893044603,-539.68485001,0.00012481,2]
[398704956,1765893044612,-155.64,0.000125,2]